bitfinex-derivatives/quotes_BTCF0:USTF0_20260119
["timestamp","ask_amount","ask_price","bid_price","bid_amount"]
[1768809228139,0.00016164,92828.0,92811.0,0.02971603]
[1768809228338,0.010778,92827.0,92814.0,0.00983992]
[1768809228841,0.010779,92824.0,92810.0,0.14499123]
[1768809229033,0.010778,92827.0,92810.0,0.14499123]
[1768809230340,0.010779,92824.0,92810.0,0.14499123]
[1768809230644,0.010779,92823.0,92809.0,0.01893603]
[1768809230831,0.010779,92823.0,92809.0,0.00983992]
[1768809231031,0.00961112,92827.0,92809.0,0.00983992]
[1768809231032,0.010778,92827.0,92810.0,0.00983992]
[1768809231335,0.010779,92824.0,92811.0,0.00983992]
[1768809232846,0.02016723,92824.0,92807.0,0.01078]
[1768809233044,0.02016723,92824.0,92805.0,0.097]
[1768809233342,0.010779,92823.0,92805.0,0.097]
[1768809233548,0.010779,92821.0,92805.0,0.097]
[1768809233748,0.15437946,92820.0,92805.0,0.097]
[1768809234246,0.15437946,92820.0,92803.0,0.01982704]
[1768809234645,0.15437946,92820.0,92803.0,0.00904604]
[1768809234852,0.00924093,92823.0,92804.0,0.00904604]
[1768809235041,0.00938823,92824.0,92805.0,0.00904604]
[1768809235647,0.00938823,92827.0,92807.0,0.00904604]
[1768809236440,0.010778,92826.0,92807.0,0.01982604]
[1768809236641,0.010778,92826.0,92810.0,0.14499123]
[1768809236838,0.010778,92826.0,92808.0,0.00904604]
[1768809237146,0.00938823,92827.0,92809.0,0.01078]
[1768809237348,0.00938823,92827.0,92811.0,0.01078]
[1768809237746,0.00016164,92828.0,92811.0,0.01078]
[1768809240147,0.00938823,92827.0,92808.0,0.01982604]
[1768809240348,0.00938823,92826.0,92808.0,0.01078]
[1768809240555,0.00938823,92826.0,92806.0,0.00904604]
[1768809240749,0.00938823,92826.0,92807.0,0.00904604]
[1768809240949,0.00954987,92828.0,92810.0,0.14499123]
[1768809241146,0.00016164,92828.0,92812.0,0.01852192]
[1768809242053,0.00237008,92824.0,92812.0,0.01852192]
[1768809243853,0.00237008,92824.0,92813.0,0.01852192]
[1768809245557,0.00237008,92824.0,92814.0,0.01078]
[1768809246956,0.00016164,92828.0,92816.0,0.00904604]
[1768809247156,0.00016164,92828.0,92816.0,0.01852192]
[1768809247346,0.00016164,92828.0,92818.0,0.01852192]
[1768809248648,0.00016164,92828.0,92818.0,0.00904604]
[1768809248945,0.00016164,92828.0,92819.0,0.00947588]
[1768809249252,0.00016164,92828.0,92818.0,0.00904604]
[1768809251650,0.00016164,92828.0,92818.0,0.01982504]
[1768809252549,0.00016164,92828.0,92818.0,0.00904604]
[1768809252856,0.00016164,92828.0,92818.0,0.01852192]
[1768809257248,0.00016164,92828.0,92819.0,0.00904604]
[1768809259355,0.00016164,92828.0,92819.0,0.01852192]
[1768809260563,0.00016164,92828.0,92820.0,0.00904604]
[1768809261261,0.00016164,92828.0,92820.0,0.01852192]
[1768809261465,0.00016164,92828.0,92821.0,0.00904604]
[1768809265565,0.00020164,92828.0,92821.0,0.00904604]
[1768809266868,0.00236996,92829.0,92823.0,0.00906836]
[1768809267065,0.097,92834.0,92825.0,0.00906836]
[1768809268971,0.097,92837.0,92825.0,0.00906836]
[1768809269268,0.010777,92841.0,92827.0,0.00906836]
[1768809269469,0.12160312,92840.0,92829.0,0.00906836]
[1768809269670,0.02460312,92839.0,92829.0,0.00906836]
[1768809269877,0.24199123,92840.0,92829.0,0.00906836]
[1768809270072,0.24199123,92840.0,92822.0,0.010779]
[1768809270073,0.24199123,92840.0,92824.0,0.01813357]
[1768809270272,0.24199123,92840.0,92824.0,0.01393357]
[1768809270567,0.00973001,92844.0,92826.0,0.010778]
[1768809270774,0.03,92844.0,92830.0,0.00906836]
[1768809274180,0.03,92844.0,92830.0,0.01984636]
[1768809275175,0.03,92844.0,92830.0,0.00906836]
[1768809279978,0.03,92844.0,92831.0,0.010778]
[1768809280883,0.03,92844.0,92830.0,0.00906836]
[1768809281685,0.03,92844.0,92830.0,0.01984636]
[1768809281878,0.010776,92848.0,92830.0,0.01984636]
[1768809282182,0.097,92847.0,92830.0,0.01984636]
[1768809282382,0.127,92847.0,92830.0,0.01984636]
[1768809283787,0.10677758,92847.0,92830.0,0.01984636]
[1768809284775,0.097,92847.0,92830.0,0.00906836]
[1768809285388,0.10677758,92847.0,92830.0,0.00906836]
[1768809286390,0.10677758,92847.0,92832.0,0.010778]
[1768809287080,0.00977758,92847.0,92832.0,0.010778]
[1768809287281,0.097,92846.0,92832.0,0.010778]
[1768809287691,0.097,92846.0,92830.0,0.00906836]
[1768809288087,0.097,92846.0,92831.0,0.010778]
[1768809288287,0.10677758,92846.0,92831.0,0.010778]
[1768809288788,0.00977758,92845.0,92831.0,0.010778]
[1768809293504,0.097,92847.0,92831.0,0.010778]
[1768809293687,0.10617236,92847.0,92831.0,0.010778]
[1768809294086,0.10617236,92847.0,92833.0,0.010777]
[1768809294490,0.00917236,92846.0,92833.0,0.010777]
[1768809297103,0.10617236,92848.0,92833.0,0.010777]
[1768809297599,0.00917236,92847.0,92833.0,0.010777]
[1768809300197,0.00917236,92847.0,92830.0,0.010778]
[1768809300706,0.00917236,92847.0,92829.0,0.00999187]
[1768809301399,0.00917236,92847.0,92830.0,0.010778]
[1768809301601,0.00982083,92839.0,92819.0,0.0771027]
[1768809301797,0.00917236,92837.0,92821.0,0.010779]
[1768809302605,0.00917236,92837.0,92824.0,0.010778]
[1768809304006,0.097,92838.0,92824.0,0.010778]
[1768809306310,0.00917236,92837.0,92820.0,0.00999187]
[1768809307813,0.00917236,92831.0,92815.0,0.00016164]
[1768809309511,0.00917236,92831.0,92816.0,0.010779]
[1768809310714,0.00917236,92833.0,92816.0,0.010779]
[1768809313004,0.00917236,92833.0,92815.0,0.00016164]
[1768809314314,0.010778,92832.0,92815.0,0.00016164]
[1768809314516,0.00917236,92831.0,92815.0,0.00016164]
[1768809314711,0.01899319,92831.0,92815.0,0.00016164]
[1768809314924,0.00917236,92822.0,92809.0,0.00237047]
[1768809317622,0.00917236,92821.0,92809.0,0.00237047]
[1768809317817,0.00917236,92820.0,92805.0,0.010781]
[1768809318006,0.01899319,92817.0,92805.0,0.010781]
[1768809318213,0.00917236,92816.0,92797.0,0.010782]
[1768809318511,0.00917236,92816.0,92800.0,0.010781]
[1768809319723,0.00917236,92816.0,92796.0,0.02645028]
[1768809320716,0.00917236,92813.0,92796.0,0.00999187]
[1768809320908,0.01078,92812.0,92796.0,0.00999187]
[1768809321313,0.01995236,92812.0,92796.0,0.00999187]
[1768809321515,0.00917236,92809.0,92791.0,0.097]
[1768809321715,0.00917236,92805.0,92791.0,0.097]
[1768809322224,0.00982083,92808.0,92790.0,0.01106863]
[1768809322429,0.00982083,92808.0,92787.0,0.01597398]
[1768809322722,0.01948263,92808.0,92789.0,0.010783]
[1768809323027,0.01948263,92808.0,92789.0,0.02036034]
[1768809323624,0.01948263,92808.0,92789.0,0.03130924]
[1768809323824,0.0096618,92807.0,92789.0,0.03130924]
[1768809324027,0.0096618,92807.0,92792.0,0.010782]
[1768809326022,0.0096618,92807.0,92795.0,0.010782]
[1768809329132,0.0096618,92807.0,92790.0,0.010782]
[1768809329938,0.0204418,92810.0,92790.0,0.02035934]
[1768809330132,0.0096618,92809.0,92790.0,0.02035934]
[1768809330335,0.0096618,92809.0,92793.0,0.010782]
[1768809334135,0.01078,92808.0,92790.0,0.00957734]
[1768809334527,0.01078,92808.0,92791.0,0.010782]
[1768809335636,0.10778,92808.0,92791.0,0.010782]
[1768809336830,0.097,92808.0,92791.0,0.010782]
[1768809341132,0.10668879,92808.0,92791.0,0.010782]
[1768809342636,0.10668879,92808.0,92793.0,0.010782]
[1768809345040,0.10668879,92808.0,92790.0,0.1654116]
[1768809345541,0.10668879,92808.0,92794.0,0.010782]
[1768809346042,0.10668879,92808.0,92791.0,0.010782]
[1768809346244,0.00968879,92807.0,92791.0,0.010782]
[1768809347834,0.00968879,92807.0,92790.0,0.1546296]
[1768809348237,0.010781,92806.0,92790.0,0.14505226]
[1768809348739,0.02046979,92806.0,92790.0,0.14505226]
[1768809348940,0.00968879,92806.0,92789.0,0.08805933]
[1768809349142,0.00968879,92806.0,92790.0,0.14505226]
[1768809350046,0.00968879,92806.0,92791.0,0.010782]
[1768809350446,0.097,92808.0,92791.0,0.010782]
[1768809351642,0.00968879,92807.0,92791.0,0.010782]
[1768809354049,0.00968879,92807.0,92790.0,0.22215496]
[1768809354252,0.097,92808.0,92794.0,0.010782]
[1768809356644,0.10679932,92808.0,92794.0,0.010782]
[1768809357848,0.00979932,92808.0,92794.0,0.010782]
[1768809360454,0.00979932,92807.0,92791.0,0.0771027]
[1768809361955,0.00979932,92807.0,92791.0,0.0878847]
[1768809362555,0.00979932,92807.0,92794.0,0.010782]
[1768809362853,0.097,92809.0,92794.0,0.010782]
[1768809363452,0.10679932,92809.0,92794.0,0.010782]
[1768809363652,0.00979932,92809.0,92794.0,0.010782]
[1768809363954,0.10679932,92809.0,92794.0,0.010782]
[1768809364859,0.00996096,92813.0,92798.0,0.010782]
[1768809365058,0.00016164,92813.0,92801.0,0.01473094]
[1768809365356,0.00016164,92813.0,92802.0,0.0098079]
[1768809367057,0.00016164,92813.0,92803.0,0.010781]
[1768809367472,0.00016164,92813.0,92802.0,0.0098079]
[1768809369076,0.00016164,92813.0,92802.0,0.01467005]
[1768809369273,0.00016164,92813.0,92803.0,0.01467005]
[1768809369672,0.00016164,92813.0,92803.0,0.0098079]
[1768809370478,0.00016164,92813.0,92806.0,0.010781]
[1768809370673,0.00016164,92813.0,92803.0,0.0098079]
[1768809374377,0.00016164,92813.0,92804.0,0.010781]
[1768809380172,0.00016164,92813.0,92803.0,0.0098079]
[1768809382880,0.00016164,92813.0,92803.0,0.0205889]
[1768809385082,0.00016164,92813.0,92805.0,0.010781]
[1768809387682,0.00016164,92813.0,92803.0,0.01503827]
[1768809388682,0.00016164,92813.0,92804.0,0.01520493]
[1768809388983,0.00237008,92824.0,92815.0,0.01078]
[1768809389171,0.00236996,92829.0,92815.0,0.01078]
[1768809390670,0.00236996,92829.0,92821.0,0.00997456]
[1768809391681,0.00963882,92845.0,92826.0,0.00997456]
[1768809391882,0.097,92838.0,92826.0,0.0154158]
[1768809392186,0.097,92838.0,92827.0,0.00997456]
[1768809392892,0.097,92838.0,92828.0,0.010778]
[1768809394188,0.097,92838.0,92829.0,0.0153562]
[1768809394587,0.097,92845.0,92829.0,0.0153562]
[1768809394889,0.097,92845.0,92829.0,0.00997456]
[1768809395580,0.00963882,92846.0,92829.0,0.00997456]
[1768809395782,0.097,92845.0,92829.0,0.00997456]
[1768809395974,0.00963882,92846.0,92829.0,0.00997456]
[1768809396180,0.097,92845.0,92829.0,0.00997456]
[1768809396580,0.00963882,92846.0,92830.0,0.010778]
[1768809396881,0.0096394,92849.0,92830.0,0.02075256]
[1768809397085,0.097,92846.0,92830.0,0.02075256]
[1768809397785,0.0096394,92849.0,92810.0,0.0771027]
[1768809397786,5e-07,92842.0,92839.0,0.00997456]
[1768809397989,5.8e-07,92849.0,92839.0,0.00997456]
[1768809402890,0.0297672,92862.0,92841.0,0.00999447]
[1768809403086,0.097,92860.0,92844.0,0.01509054]
[1768809403792,0.097,92860.0,92844.0,0.00999447]
[1768809406096,0.10641715,92860.0,92844.0,0.00999447]
[1768809408098,0.010774,92859.0,92844.0,0.00999447]
[1768809410001,0.10641715,92860.0,92844.0,0.00999447]
[1768809411003,0.10641715,92860.0,92847.0,0.010776]
[1768809411300,0.097,92860.0,92847.0,0.010776]
[1768809411698,0.097,92861.0,92847.0,0.010776]
[1768809411901,0.10641715,92861.0,92847.0,0.010776]
[1768809413701,0.10641715,92861.0,92844.0,0.00999447]
[1768809414200,0.10641715,92861.0,92845.0,0.010776]
[1768809414391,0.097,92861.0,92845.0,0.010776]
[1768809414591,0.00929234,92860.0,92845.0,0.010776]
[1768809415505,0.00929234,92860.0,92842.0,0.010776]
[1768809416911,0.00929234,92860.0,92839.0,0.01609557]
[1768809417114,0.00929234,92860.0,92839.0,0.02535709]
[1768809418401,0.00929234,92859.0,92839.0,0.02535709]
[1768809418908,0.00929234,92859.0,92841.0,0.010776]
[1768809419899,0.00929234,92859.0,92839.0,0.01458009]
[1768809420413,0.00929234,92859.0,92843.0,0.010776]
[1768809420597,0.00929234,92859.0,92841.0,0.010777]
[1768809420908,0.00929234,92859.0,92840.0,0.01440984]
[1768809421608,0.00929234,92859.0,92847.0,0.010776]
[1768809423809,0.00929234,92859.0,92850.0,0.010775]
[1768809424209,0.00929234,92859.0,92846.0,0.010776]
[1768809426710,0.097,92861.0,92842.0,0.01455072]
[1768809427012,0.10629234,92861.0,92843.0,0.00926152]
[1768809427411,0.10629234,92861.0,92846.0,0.010776]
[1768809428115,0.00929234,92860.0,92843.0,0.02003752]
[1768809428309,0.00929234,92860.0,92845.0,0.010776]
[1768809428519,0.00929234,92860.0,92843.0,0.00926152]
[1768809429512,0.00929234,92860.0,92847.0,0.010776]
[1768809429901,0.00929234,92860.0,92843.0,0.02003752]
[1768809432314,0.00929234,92860.0,92845.0,0.010776]
[1768809433006,0.00929234,92860.0,92847.0,0.010776]
[1768809433212,0.00929234,92860.0,92843.0,0.00926152]
[1768809433518,0.00929234,92860.0,92838.0,0.01499173]
[1768809433706,0.00929234,92860.0,92839.0,0.00926152]
[1768809434719,0.00929234,92860.0,92843.0,0.010776]
[1768809435708,0.00929234,92858.0,92839.0,0.00926152]
[1768809436618,0.00929234,92858.0,92842.0,0.010776]
[1768809436916,0.00929234,92858.0,92839.0,0.00926152]
[1768809437107,0.00929234,92858.0,92840.0,0.010777]
[1768809437617,0.00929234,92858.0,92842.0,0.010776]
[1768809438010,0.00929234,92858.0,92839.0,0.00926152]
[1768809438918,0.00929234,92858.0,92845.0,0.010776]
[1768809439320,0.00929234,92858.0,92839.0,0.00926152]
[1768809440219,0.097,92861.0,92844.0,0.010776]
[1768809440521,0.10629234,92861.0,92844.0,0.010776]
[1768809440712,0.10629234,92861.0,92846.0,0.010776]
[1768809441221,0.00929234,92860.0,92846.0,0.010776]
[1768809442619,0.00236906,92864.0,92848.0,0.01577604]
[1768809442813,0.00236906,92864.0,92853.0,0.010775]
[1768809443617,0.00236906,92864.0,92850.0,0.00988688]
[1768809444016,0.00236906,92864.0,92851.0,0.010775]
[1768809445126,0.00236906,92864.0,92850.0,0.00988688]
[1768809445322,0.00236906,92864.0,92850.0,0.0158632]
[1768809445528,0.00236906,92864.0,92857.0,0.010775]
[1768809446525,0.00236906,92864.0,92851.0,0.02066188]
[1768809446725,0.00236906,92864.0,92854.0,0.010775]
[1768809447228,0.00236906,92864.0,92851.0,0.02066188]
[1768809451329,0.00236906,92864.0,92855.0,0.00988688]
[1768809456230,0.00236906,92864.0,92856.0,0.00988688]
[1768809456625,0.00236906,92864.0,92850.0,0.00016155]
[1768809456924,0.00236906,92864.0,92850.0,0.14501987]
[1768809457326,0.00236906,92864.0,92850.0,0.00016155]
[1768809457530,0.00236906,92864.0,92850.0,0.14501987]
[1768809458723,0.00236906,92864.0,92850.0,0.00016155]
[1768809460530,0.00236906,92864.0,92850.0,0.14501987]
[1768809463239,0.00236906,92864.0,92850.0,0.15579487]
[1768809464640,0.00236906,92864.0,92853.0,0.010775]
[1768809464835,0.00236906,92864.0,92852.0,0.00656942]
[1768809465238,0.00236906,92864.0,92853.0,0.00656942]
[1768809465636,0.00236906,92864.0,92854.0,0.00656942]
[1768809466540,0.00236906,92864.0,92855.0,0.01740855]
[1768809466737,0.09696,92870.0,92858.0,0.010775]
[1768809466942,0.09696,92876.0,92860.0,0.14485832]
[1768809467139,0.010773,92872.0,92859.0,0.00663355]
[1768809467444,0.09696,92876.0,92855.0,0.00663355]
[1768809467445,0.11729218,92876.0,92855.0,0.00663355]
[1768809467840,0.02033218,92874.0,92855.0,0.00663355]
[1768809468145,0.010774,92867.0,92850.0,0.00016155]
[1768809468443,0.00955918,92864.0,92850.0,0.00016155]
[1768809468836,0.00917308,92865.0,92850.0,0.00016155]
[1768809469845,0.14485832,92860.0,92845.0,0.00663355]
[1768809470032,0.14485832,92860.0,92844.0,0.10649569]
[1768809470237,0.010774,92859.0,92844.0,0.10649569]
[1768809470541,0.15563232,92860.0,92844.0,0.09696]
[1768809470941,0.00955918,92860.0,92844.0,0.09696]
[1768809471837,0.010774,92861.0,92844.0,0.09696]
[1768809472548,0.00917308,92863.0,92844.0,0.09696]
[1768809472549,0.01882398,92863.0,92844.0,0.09696]
[1768809472938,0.0096509,92862.0,92844.0,0.09696]
[1768809473139,0.14485832,92860.0,92845.0,0.010776]
[1768809473339,0.0096509,92862.0,92845.0,0.010776]
[1768809474348,0.00917308,92863.0,92845.0,0.010776]
[1768809474849,0.00917308,92863.0,92849.0,0.010776]
[1768809475038,0.09696,92864.0,92850.0,0.14485832]
[1768809475242,0.09696,92864.0,92851.0,0.010775]
[1768809475544,0.14485832,92870.0,92844.0,0.00656919]
[1768809475545,0.09696,92875.0,92856.0,0.010775]
[1768809475845,0.010772,92876.0,92856.0,0.010775]
[1768809475846,0.09696,92874.0,92856.0,0.01740549]
[1768809476040,0.09696,92874.0,92860.0,0.14485832]
[1768809476240,0.09696,92874.0,92857.0,0.00663049]
[1768809476836,0.09696,92874.0,92861.0,0.010774]
[1768809477236,0.09696,92874.0,92860.0,0.14485832]
[1768809477851,0.09696,92874.0,92859.0,0.01747992]
[1768809478450,0.09696,92874.0,92860.0,0.14485832]
[1768809479454,0.01915914,92883.0,92862.0,0.01633514]
[1768809479654,0.09696,92879.0,92863.0,0.00650193]
[1768809480752,0.09696,92879.0,92865.0,0.00659252]
[1768809480949,0.01314055,92884.0,92865.0,0.00659252]
[1768809481152,0.09696,92880.0,92865.0,0.00659252]
[1768809481656,0.09696,92880.0,92864.0,0.00983321]
[1768809482945,0.09696,92880.0,92864.0,0.02060721]
[1768809483951,0.09696,92880.0,92868.0,0.010773]
[1768809484156,0.09696,92880.0,92871.0,0.010773]
[1768809485458,0.0096509,92883.0,92867.0,0.010773]
[1768809485651,0.09696,92882.0,92870.0,0.14485832]
[1768809485850,0.13696,92882.0,92867.0,0.010773]
[1768809486049,0.13696,92882.0,92866.0,0.00016155]
[1768809486257,0.1466109,92882.0,92866.0,0.00016155]
[1768809488252,0.01187679,92884.0,92866.0,0.00016155]
[1768809488253,0.0096509,92883.0,92866.0,0.00016155]
[1768809488463,0.0096509,92882.0,92870.0,0.14485832]
[1768809488658,0.0096509,92882.0,92871.0,0.010773]
[1768809489058,0.00950824,92883.0,92871.0,0.010773]
[1768809489362,0.00820824,92883.0,92870.0,0.14485832]
[1768809489565,0.01785914,92883.0,92870.0,0.14485832]
[1768809489955,0.00236855,92884.0,92870.0,0.14485832]
[1768809490165,0.00236855,92884.0,92871.0,0.010773]
[1768809490358,0.00236855,92884.0,92870.0,0.15140834]
[1768809490664,0.00236855,92884.0,92870.0,0.15563132]
[1768809491459,0.01201945,92884.0,92870.0,0.14485832]
[1768809492963,0.01201945,92884.0,92868.0,0.010773]
[1768809494265,0.01201945,92884.0,92872.0,0.010773]
[1768809494662,0.00236855,92884.0,92872.0,0.010773]
[1768809499765,0.00236855,92884.0,92867.0,0.00705094]
[1768809499972,0.00236855,92884.0,92867.0,0.01688415]
[1768809500160,0.00236855,92884.0,92867.0,0.00983321]
[1768809501060,0.01201945,92884.0,92867.0,0.00983321]
[1768809501567,0.00236855,92884.0,92868.0,0.00730534]
[1768809501770,0.00236855,92884.0,92870.0,0.15216366]
[1768809502070,0.00236855,92884.0,92870.0,0.00730534]
[1768809504270,0.00231855,92884.0,92870.0,0.00730534]
[1768809505271,0.00231855,92884.0,92875.0,0.00745542]
[1768809506073,0.00236843,92889.0,92875.0,0.00745542]
[1768809506975,0.00236843,92889.0,92874.0,0.00927133]
[1768809508175,0.00236843,92889.0,92874.0,0.01673438]
[1768809508667,0.00236843,92889.0,92874.0,0.00927133]
[1768809508873,0.00236843,92889.0,92872.0,0.010773]
[1768809509075,0.00236843,92889.0,92870.0,0.15278218]
[1768809509374,0.00236843,92889.0,92872.0,0.00792386]
[1768809510574,0.00236843,92889.0,92873.0,0.010773]
[1768809510777,0.00236843,92889.0,92874.0,0.00792317]
[1768809512265,0.00236843,92889.0,92874.0,0.0171945]
[1768809513372,0.12722675,92890.0,92874.0,0.0171945]
[1768809513576,0.14485832,92890.0,92874.0,0.0171945]
[1768809514167,0.14485832,92890.0,92874.0,0.0279675]
[1768809514369,0.14485832,92890.0,92877.0,0.010772]
[1768809514570,0.09692,92892.0,92881.0,0.00788092]
[1768809514771,0.09692,92892.0,92880.0,0.02004333]
[1768809515077,0.15466566,92900.0,92880.0,0.010772]
[1768809515279,0.09692,92899.0,92880.0,0.01865292]
[1768809515469,0.12692,92899.0,92880.0,0.01865292]
[1768809516281,0.12692,92899.0,92880.0,0.00788092]
[1768809516476,0.13592575,92899.0,92880.0,0.00788092]
[1768809516675,0.13592575,92899.0,92880.0,0.15273924]
[1768809516980,0.13592575,92899.0,92880.0,0.00788092]
[1768809517478,0.13592575,92899.0,92881.0,0.010772]
[1768809517877,0.13592575,92899.0,92884.0,0.010772]
[1768809518179,0.13592575,92899.0,92880.0,0.01865292]
[1768809518479,0.13592575,92899.0,92882.0,0.010772]
[1768809518875,0.12692,92899.0,92882.0,0.010772]
[1768809519072,0.12692,92899.0,92882.0,0.01856591]
[1768809519574,0.12692,92899.0,92882.0,0.010772]
[1768809519774,0.13688389,92899.0,92882.0,0.010772]
[1768809520172,0.00996389,92898.0,92882.0,0.010772]
[1768809520380,0.01996389,92898.0,92882.0,0.010772]
[1768809522280,0.00996389,92898.0,92882.0,0.010772]
[1768809523281,0.00996389,92898.0,92879.0,0.00927133]
[1768809524088,0.00996389,92898.0,92884.0,0.010771]
[1768809528386,0.00996389,92898.0,92881.0,0.010772]
[1768809528577,0.01960014,92898.0,92879.0,0.00927133]
[1768809528793,0.00996389,92897.0,92879.0,0.00927133]
[1768809529085,0.00996389,92897.0,92880.0,0.010772]
[1768809529586,0.00996389,92897.0,92882.0,0.010772]
[1768809530285,0.00996389,92897.0,92879.0,0.00927133]
[1768809530585,0.00996389,92897.0,92879.0,0.01703821]
[1768809532188,0.00963625,92898.0,92879.0,0.01703821]
[1768809532378,0.00963625,92898.0,92884.0,0.010771]
[1768809535180,0.09692,92899.0,92884.0,0.010771]
[1768809535493,0.10626075,92899.0,92884.0,0.010771]
[1768809536189,0.10626075,92899.0,92886.0,0.010771]
[1768809537391,0.10626075,92899.0,92882.0,0.010772]
[1768809537691,0.10626075,92899.0,92876.0,0.09692]
[1768809537692,0.02011075,92895.0,92876.0,0.09692]
[1768809537892,0.00934075,92892.0,92876.0,0.09692]
[1768809538281,0.02040588,92893.0,92876.0,0.09692]
[1768809538479,0.00963488,92893.0,92876.0,0.09692]
[1768809538796,0.00934075,92892.0,92876.0,0.09692]
[1768809538989,0.00934075,92891.0,92875.0,0.09692]
[1768809540287,0.00934075,92890.0,92875.0,0.09692]
[1768809541691,0.00934075,92883.0,92869.0,0.00236894]
[1768809541895,0.00934075,92879.0,92869.0,0.00236894]
[1768809542191,0.010772,92883.0,92863.0,0.09692]
[1768809542394,0.02011275,92883.0,92863.0,0.09692]
[1768809542581,0.00934075,92882.0,92863.0,0.09692]
[1768809545289,0.01897563,92870.0,92849.0,0.07947215]
[1768809545483,0.00934075,92867.0,92849.0,0.00236945]
[1768809545886,0.00934075,92867.0,92850.0,0.010775]
[1768809547695,0.00963488,92868.0,92853.0,0.010775]
[1768809548281,0.00934075,92870.0,92853.0,0.010775]
[1768809548484,0.09692,92872.0,92855.0,0.01992656]
[1768809549496,0.09692,92872.0,92857.0,0.00915156]
[1768809552304,0.09692,92872.0,92856.0,0.0091287]
[1768809553606,0.09692,92872.0,92855.0,0.010775]
[1768809562711,0.00906903,92871.0,92855.0,0.010775]
[1768809566616,0.00906903,92870.0,92855.0,0.010775]
[1768809567009,0.00906903,92869.0,92855.0,0.010775]
[1768809567315,0.00906903,92869.0,92851.0,0.010775]
[1768809567614,0.00906903,92868.0,92851.0,0.010775]
[1768809568306,0.00906903,92867.0,92851.0,0.010775]
[1768809568812,0.01876756,92867.0,92851.0,0.010775]
[1768809569014,0.00906903,92866.0,92851.0,0.010775]
[1768809569615,0.00906903,92866.0,92849.0,0.09932945]
[1768809569817,0.00906903,92864.0,92849.0,0.09932945]
[1768809570407,0.00906903,92864.0,92849.0,0.11010445]
[1768809570718,0.00906903,92864.0,92851.0,0.010775]
[1768809573118,0.00906903,92867.0,92850.0,0.0771027]
[1768809574410,0.00906903,92865.0,92850.0,0.0771027]
[1768809574720,0.00906903,92865.0,92851.0,0.010775]
[1768809575119,0.00906903,92865.0,92851.0,0.0878777]
[1768809577521,0.00906903,92865.0,92851.0,0.0771027]
[1768809577920,0.00906903,92865.0,92851.0,0.0878777]
[1768809578219,0.00906903,92865.0,92852.0,0.0771027]
[1768809578521,0.00906903,92865.0,92851.0,0.0878777]
[1768809580422,0.00906903,92865.0,92851.0,0.0771027]
[1768809581428,0.00906903,92865.0,92851.0,0.0878777]
[1768809581725,0.00969853,92866.0,92851.0,0.0878777]
[1768809582522,0.00924481,92869.0,92851.0,0.0878777]
[1768809583723,0.00924481,92869.0,92853.0,0.010775]
[1768809585221,0.00924481,92869.0,92855.0,0.010775]
[1768809586521,0.00924481,92869.0,92852.0,0.0771027]
[1768809586721,0.00961541,92871.0,92857.0,0.010775]
[1768809592227,0.09692,92872.0,92857.0,0.010775]
[1768809594329,0.10592228,92872.0,92857.0,0.010775]
[1768809596133,0.10592228,92872.0,92854.0,0.010775]
[1768809596730,0.10592228,92872.0,92856.0,0.010775]
[1768809597930,0.10592228,92872.0,92852.0,0.08687617]
[1768809599431,0.10592228,92872.0,92856.0,0.010775]
[1768809599831,0.10592228,92872.0,92860.0,0.14485466]
[1768809600127,0.10592228,92872.0,92856.0,0.010775]
[1768809600327,0.10592228,92872.0,92858.0,0.010774]
[1768809600531,0.10592228,92872.0,92854.0,0.010775]
[1768809601537,0.00900228,92871.0,92854.0,0.010775]
[1768809601724,0.010772,92880.0,92856.0,0.01917298]
[1768809601925,0.09696,92879.0,92859.0,0.00977347]
[1768809602124,0.00900228,92878.0,92859.0,0.00977347]
[1768809602325,0.00900228,92878.0,92857.0,0.00939951]
[1768809602832,0.00900228,92878.0,92852.0,0.07723331]
[1768809603033,0.00900228,92878.0,92850.0,0.07723331]
[1768809603332,0.00900228,92878.0,92845.0,0.07723331]
[1768809603537,0.00900228,92877.0,92843.0,0.07723331]
[1768809603732,0.010775,92857.0,92837.0,0.06723331]
[1768809603940,0.01875074,92850.0,92837.0,0.06723331]
[1768809604240,0.01875074,92850.0,92835.0,0.09696]
[1768809604439,0.00900228,92847.0,92830.0,0.010778]
[1768809605038,0.00974846,92848.0,92830.0,0.010778]
[1768809605239,0.01875074,92848.0,92830.0,0.010778]
[1768809605641,0.00900228,92845.0,92829.0,0.00236996]
[1768809606032,0.00900228,92844.0,92829.0,0.00236996]
[1768809606239,0.00900228,92843.0,92829.0,0.00236996]
[1768809606641,0.00900228,92841.0,92829.0,0.00236996]
[1768809606848,0.01875074,92833.0,92816.0,0.010779]
[1768809607052,0.00974846,92832.0,92819.0,0.010779]
[1768809607251,0.00974846,92838.0,92819.0,0.00977347]
[1768809607549,0.10596228,92846.0,92823.0,0.00977347]
[1768809607750,0.00016155,92838.0,92820.0,0.00977347]
[1768809608050,0.00916383,92838.0,92820.0,0.00977347]
[1768809608956,0.00016155,92838.0,92820.0,0.01917298]
[1768809609249,0.00016155,92838.0,92821.0,0.00977347]
[1768809609446,0.00016155,92838.0,92821.0,0.01917298]
[1768809609637,0.00016155,92838.0,92813.0,0.09696]
[1768809609638,0.00016155,92838.0,92823.0,0.00977347]
[1768809609834,0.00016155,92838.0,92825.0,0.00977347]
[1768809610237,0.00016155,92838.0,92825.0,0.01917298]
[1768809610548,0.00016155,92838.0,92829.0,0.02055147]
[1768809610863,0.00016155,92838.0,92830.0,0.00977347]
[1768809611640,0.09696,92848.0,92834.0,0.00977347]
[1768809612849,0.09696,92848.0,92832.0,0.02055147]
[1768809613446,0.00900228,92851.0,92832.0,0.02055147]
[1768809613639,0.09696,92850.0,92835.0,0.00977347]
[1768809613839,0.09696,92852.0,92838.0,0.00977347]
[1768809614040,0.09696,92853.0,92838.0,0.00977347]
[1768809614336,0.09696,92855.0,92842.0,0.00977347]
[1768809614744,0.09696,92855.0,92845.0,0.1448546]
[1768809614945,0.01875074,92862.0,92845.0,0.1448546]
[1768809614946,0.00974846,92862.0,92845.0,0.1448546]
[1768809615249,0.09696,92861.0,92850.0,0.1448546]
[1768809615551,0.09696,92861.0,92851.0,0.1448546]
[1768809616248,0.09696,92861.0,92846.0,0.00016155]
[1768809616449,0.09696,92861.0,92851.0,0.1448546]
[1768809616652,0.09696,92863.0,92850.0,0.15462807]
[1768809616842,0.09696,92863.0,92853.0,0.1448546]
[1768809618143,0.00900228,92860.0,92850.0,0.1448546]
[1768809618344,0.00900228,92856.0,92850.0,0.1048546]
[1768809618550,0.00900228,92856.0,92837.0,0.00939951]